fUST/lending_fUST_20250808
["ID","MTS","AMOUNT","RATE_DAILY","PERIOD"]
[377894670,1754603440137,-151.0,0.00022191,2]
[377894671,1754603440147,-460.0,0.00022191,2]
[377894672,1754603440156,-460.0,0.00022191,2]
[377894673,1754603440165,-460.0,0.00022191,2]
[377894675,1754603440174,-593.46,0.00022191,2]
[377894677,1754603440184,-460.0,0.00022191,2]
[377894678,1754603440193,-460.0,0.00022191,2]
[377894679,1754603440202,-445.24433137,0.00022191,2]
[377894680,1754603440211,-460.0,0.00022191,2]
[377894681,1754603440220,-460.0,0.00022191,2]
[377894682,1754603440229,-478.61,0.00022191,2]
[377894683,1754603440239,-460.0,0.00022191,2]
[377894684,1754603440248,-988.29,0.00022191,2]
[377894685,1754603440257,-496.73,0.00022191,2]
[377894686,1754603440267,-460.0,0.00022191,2]
[377894687,1754603440276,-475.28,0.00022191,2]
[377894688,1754603440286,-460.0,0.00022191,2]
[377894689,1754603440296,-460.0,0.00022191,2]
[377894690,1754603440304,-1038.3,0.00022191,2]
[377894691,1754603440314,-460.0,0.00022191,2]
[377894692,1754603440323,-460.0,0.00022191,2]
[377894693,1754603440332,-460.0,0.00022191,2]
[377894694,1754603440342,-460.0,0.00022191,2]
[377894695,1754603440352,-659.64,0.00022191,2]
[377894696,1754603440360,-326.99591844,0.00022191,2]
[377894697,1754603440370,-460.0,0.00022191,2]
[377894698,1754603440379,-696.32,0.00022191,2]
[377894699,1754603440388,-931.5,0.00022191,2]
[377894700,1754603440397,-460.0,0.00022191,2]
[377894701,1754603440406,-460.0,0.00022191,2]
[377894702,1754603440414,-780.8,0.00022191,2]
[377894703,1754603440424,-460.0,0.00022191,2]
[377894704,1754603440433,-460.0,0.00022191,2]
[377894705,1754603440442,-460.0,0.00022191,2]
[377894706,1754603440452,-460.0,0.00022191,2]
[377894707,1754603440462,-1235.24,0.00022191,2]
[377894708,1754603440472,-541.96,0.00022191,2]
[377894709,1754603440481,-460.0,0.00022191,2]
[377894711,1754603440490,-460.0,0.00022191,2]
[377894713,1754603440499,-460.0,0.00022191,2]
[377894715,1754603440508,-460.0,0.00022191,2]
[377894716,1754603440518,-460.0,0.00022191,2]
[377894718,1754603440527,-460.0,0.00022191,2]
[377894720,1754603440536,-460.0,0.00022191,2]
[377894722,1754603440546,-1215.77,0.00022191,2]
[377894724,1754603440555,-460.0,0.00022191,2]
[377894726,1754603440564,-460.0,0.00022191,2]
[377894728,1754603440573,-857.72,0.00022191,2]
[377894730,1754603440582,-460.0,0.00022191,2]
[377894732,1754603440593,-460.0,0.00022191,2]
[377894734,1754603440602,-460.0,0.00022191,2]
[377894736,1754603440612,-621.03,0.00022191,2]
[377894738,1754603440621,-460.0,0.00022191,2]
[377894740,1754603440631,-211.87,0.00022191,2]
[377894742,1754603440640,-460.0,0.00022191,2]
[377894744,1754603440649,-1356.22,0.00022191,2]
[377894746,1754603440658,-460.0,0.00022191,2]
[377894747,1754603440667,-460.0,0.00022191,2]
[377894748,1754603440677,-460.0,0.00022191,2]
[377894749,1754603440686,-736.66,0.00022191,2]
[377894750,1754603440696,-460.0,0.00022191,2]
[377894751,1754603440706,-460.0,0.00022191,2]
[377894752,1754603440718,-460.0,0.00022191,2]
[377894753,1754603440727,-499.8,0.00022191,2]
[377894755,1754603440737,-591.12712762,0.00022191,2]
[377894757,1754603440747,-465.24,0.00022191,2]
[377894758,1754603440758,-460.0,0.00022191,2]
[377894759,1754603440767,-2049.89,0.00022191,2]
[377894760,1754603440777,-460.0,0.00022191,2]
[377894761,1754603440789,-856.73,0.00022191,2]
[377894762,1754603440800,-1031.25,0.00022191,2]
[377894764,1754603440809,-460.0,0.00022191,2]
[377894765,1754603440819,-509.41,0.00022191,2]
[377894766,1754603440828,-152.05187792,0.000223,2]
[377894767,1754603440838,-200.0,0.00022354,2]
[377894768,1754603440847,-455.63,0.00022355,3]
[377894769,1754603440856,-455.63,0.00022355,3]
[377894770,1754603440866,-911.27,0.00022358,3]
[377894771,1754603440875,-7140.56937081,0.00022365,2]
[377894772,1754603440884,-151.0,0.00022368,2]
[377894773,1754603440894,-300.0,0.00022368,2]
[377894774,1754603440903,-300.0,0.00022368,2]
[377894775,1754603441049,-300.0,0.00022368,2]
[377894776,1754603441059,-300.0,0.00022368,2]
[377894777,1754603441068,-300.0,0.00022368,2]
[377894778,1754603441078,-300.0,0.00022368,2]
[377894779,1754603441087,-300.0,0.00022368,2]
[377894780,1754603441096,-300.0,0.00022368,2]
[377894781,1754603441105,-300.0,0.00022368,2]
[377894782,1754603441114,-300.0,0.00022368,2]
[377894783,1754603441124,-300.0,0.00022368,2]
[377894784,1754603441133,-151.0,0.00022368,2]
[377894785,1754603441141,-151.0,0.00022368,2]
[377894786,1754603441151,-151.0,0.00022368,2]
[377894787,1754603441160,-151.0,0.00022368,2]
[377894788,1754603441168,-151.0,0.00022368,2]
[377894789,1754603441177,-151.0,0.00022368,2]
[377894790,1754603441187,-151.0,0.00022368,2]
[377894791,1754603441196,-151.0,0.00022368,2]
[377894792,1754603441205,-151.0,0.00022368,2]
[377894793,1754603441216,-151.0,0.00022368,2]
[377894794,1754603441225,-151.0,0.00022368,2]
[377894795,1754603441235,-151.0,0.00022465,2]
[377894796,1754603441243,-460.0,0.00022465,2]
[377894797,1754603441252,-460.0,0.00022465,2]
[377894798,1754603441260,-460.0,0.00022465,2]
[377894799,1754603441268,-593.46,0.00022465,2]
[377894800,1754603441277,-460.0,0.00022465,2]
[377894801,1754603441286,-460.0,0.00022465,2]
[377894802,1754603441297,-460.0,0.00022465,2]
[377894803,1754603441307,-478.61,0.00022465,2]
[377894804,1754603441316,-988.29,0.00022465,2]
[377894805,1754603441326,-460.0,0.00022465,2]
[377894806,1754603441335,-1038.3,0.00022465,2]
[377894807,1754603441345,-460.0,0.00022465,2]
[377894808,1754603441354,-460.0,0.00022465,2]
[377894809,1754603441363,-151.0,0.00022465,7]
[377894810,1754603441373,-151.0,0.00022465,7]
[377894811,1754603441382,-460.0,0.00022465,2]
[377894812,1754603441392,-659.64,0.00022465,2]
[377894813,1754603441401,-460.0,0.00022465,2]
[377894814,1754603441410,-696.32,0.00022465,2]
[377894815,1754603441419,-931.5,0.00022465,2]
[377894816,1754603441429,-151.0,0.00022465,7]
[377894817,1754603441438,-780.8,0.00022465,2]
[377894818,1754603441447,-460.0,0.00022465,2]
[377894819,1754603441456,-460.0,0.00022465,2]
[377894820,1754603441465,-460.0,0.00022465,2]
[377894821,1754603441475,-151.0,0.00022465,7]
[377894822,1754603441484,-460.0,0.00022465,2]
[377894823,1754603441493,-1235.24,0.00022465,2]
[377894824,1754603441503,-151.0,0.00022465,7]
[377894825,1754603441513,-460.0,0.00022465,2]
[377894826,1754603441523,-460.0,0.00022465,2]
[377894827,1754603441532,-460.0,0.00022465,2]
[377894828,1754603441542,-460.0,0.00022465,2]
[377894829,1754603441552,-151.0,0.00022465,7]
[377894830,1754603441562,-469.55,0.00022465,2]
[377894831,1754603441571,-151.0,0.00022465,7]
[377894832,1754603441580,-1215.77,0.00022465,2]
[377894833,1754603441590,-857.72,0.00022465,2]
[377894834,1754603441600,-594.56701201,0.00022465,2]
[377894835,1754603441609,-460.0,0.00022465,2]
[377894836,1754603441619,-460.0,0.00022465,2]
[377894837,1754603441628,-621.03,0.00022465,2]
[377894838,1754603441637,-151.0,0.00022465,7]
[377894839,1754603441646,-151.0,0.00022465,7]
[377894840,1754603441655,-460.0,0.00022465,2]
[377894841,1754603441666,-1356.22,0.00022465,2]
[377894842,1754603441676,-460.0,0.00022465,2]
[377894843,1754603441685,-460.0,0.00022465,2]
[377894844,1754603441694,-151.0,0.00022465,7]
[377894845,1754603441704,-736.66,0.00022465,2]
[377894846,1754603441716,-151.0,0.00022465,7]
[377894847,1754603441726,-460.0,0.00022465,2]
[377894848,1754603441735,-460.0,0.00022465,2]
[377894849,1754603441745,-151.0,0.00022465,7]
[377894850,1754603441755,-152.637558,0.00022465,7]
[377894851,1754603441764,-499.8,0.00022465,2]
[377894852,1754603441772,-151.0,0.00022465,7]
[377894853,1754603441782,-460.0,0.00022465,2]
[377894854,1754603441791,-2049.89,0.00022465,2]
[377894855,1754603441803,-151.0,0.00022465,7]
[377894856,1754603441812,-460.0,0.00022465,2]
[377894857,1754603441821,-856.73,0.00022465,2]
[377894858,1754603441830,-151.0,0.00022465,7]
[377894859,1754603441839,-151.0,0.00022465,7]
[377894860,1754603441849,-1031.25,0.00022465,2]
[377894861,1754603441858,-518.3080796,0.00022465,2]
[377894862,1754603441867,-735.595839,0.00022465,7]
[377894863,1754603441877,-509.41,0.00022465,2]
[377894864,1754603441887,-735.595839,0.00022465,7]
[377894865,1754603441897,-1000.0,0.00022521,2]
[377894866,1754603441907,-1000.0,0.00022521,2]
[377894867,1754603441918,-1000.0,0.00022521,2]
[377894868,1754603441928,-460.0,0.00022638,2]
[377894869,1754603441939,-688.97,0.00022638,2]
[377894870,1754603441951,-1822.4,0.00022638,2]
[377894871,1754603441960,-460.0,0.00022638,2]
[377894872,1754603441969,-460.0,0.00022638,2]
[377894873,1754603441978,-600.0,0.00022691,2]
[377894874,1754603441989,-200.0,0.00022736,15]
[377894875,1754603441998,-300.0,0.00022736,15]
[377894876,1754603442007,-350.67590405,0.00022738,2]
[377894877,1754603442017,-500.0,0.00022738,2]
[377894878,1754603442026,-500.0,0.00022738,2]
[377894879,1754603442035,-500.0,0.00022738,2]
[377894880,1754603442045,-500.0,0.00022738,2]
[377894881,1754603442054,-500.0,0.00022738,2]
[377894882,1754603442063,-500.0,0.00022738,2]
[377894883,1754603442073,-500.0,0.00022738,2]
[377894884,1754603442082,-500.0,0.00022738,2]
[377894885,1754603442091,-577.81520118,0.00022738,2]
[377894886,1754603442101,-500.0,0.00022738,2]
[377894887,1754603442110,-500.0,0.00022738,2]
[377894888,1754603442122,-500.0,0.00022738,2]
[377894889,1754603442131,-500.0,0.00022738,2]
[377894890,1754603442140,-500.0,0.00022738,2]
[377894891,1754603442150,-500.0,0.00022738,2]
[377894892,1754603442160,-500.0,0.00022738,2]
[377894893,1754603442169,-600.0,0.00022738,2]
[377894894,1754603442178,-500.0,0.00022738,2]
[377894895,1754603442188,-500.0,0.00022738,2]
[377894896,1754603442199,-288.99,0.00022739,2]
[377894897,1754603442208,-460.0,0.00022739,2]
[377894898,1754603442217,-151.0,0.00022739,7]
[377894899,1754603442227,-460.0,0.00022739,2]
[377894900,1754603442236,-300.00064,0.00022739,7]
[377894901,1754603442246,-460.0,0.00022739,2]
[377894902,1754603442255,-151.0,0.00022739,7]
[377894903,1754603442264,-151.668269,0.00022739,7]
[377894904,1754603442274,-549.611894,0.00022739,7]
[377894905,1754603442283,-549.611894,0.00022739,7]
[377894906,1754603442292,-151.0,0.00022739,7]
[377894907,1754603442303,-151.0,0.00022739,7]
[377894908,1754603442313,-177.699428,0.00022739,7]
[377894909,1754603442322,-151.0,0.00022739,7]
[377894910,1754603442331,-593.46,0.00022739,2]
[377894911,1754603442340,-460.0,0.00022739,2]
[377894912,1754603442350,-460.0,0.00022739,2]
[377894913,1754603442359,-460.0,0.00022739,2]
[377894914,1754603442369,-478.61,0.00022739,2]
[377894915,1754603442378,-151.0,0.00022739,7]
[377894916,1754603442387,-151.0,0.00022739,7]
[377894917,1754603442397,-151.0,0.00022739,7]
[377894918,1754603442406,-988.29,0.00022739,2]
[377894919,1754603442416,-153.587396,0.00022739,7]
[377894920,1754603442425,-151.0,0.00022739,7]
[377894921,1754603442435,-460.0,0.00022739,2]
[377894922,1754603442444,-151.0,0.00022739,7]
[377894923,1754603442453,-1038.3,0.00022739,2]
[377894924,1754603442462,-289.993092,0.00022739,7]
[377894925,1754603442471,-460.0,0.00022739,2]
[377894926,1754603442480,-217.997612,0.00022739,7]
[377894927,1754603442489,-460.0,0.00022739,2]
[377894928,1754603442498,-585.906119,0.00022739,7]
[377894929,1754603442508,-585.906119,0.00022739,7]
[377894930,1754603442517,-659.64,0.00022739,2]
[377894931,1754603442526,-460.0,0.00022739,2]
[377894932,1754603442535,-696.32,0.00022739,2]
[377894934,1754603442546,-931.5,0.00022739,2]
[377894936,1754603442555,-628.996445,0.00022739,7]
[377894937,1754603442564,-780.8,0.00022739,2]
[377894939,1754603442573,-460.0,0.00022739,2]
[377894941,1754603442583,-628.996445,0.00022739,7]
[377894943,1754603442592,-460.0,0.00022739,2]
[377894944,1754603442602,-578.86398629,0.00022739,2]
[377894945,1754603442613,-1235.24,0.00022739,2]
[377894946,1754603442622,-460.0,0.00022739,2]
[377894947,1754603442631,-394.16260232,0.00022739,2]
[377894948,1754603442640,-460.0,0.00022739,2]
[377894949,1754603442649,-494.94887208,0.00022739,2]
[377894950,1754603442659,-1215.77,0.00022739,2]
[377894951,1754603442668,-857.72,0.00022739,2]
[377894952,1754603442677,-460.0,0.00022739,2]
[377894953,1754603442686,-460.0,0.00022739,2]
[377894954,1754603442696,-621.03,0.00022739,2]
[377894955,1754603442707,-460.0,0.00022739,2]
[377894956,1754603442718,-1356.22,0.00022739,2]
[377894957,1754603442727,-460.0,0.00022739,2]
[377894959,1754603442737,-460.0,0.00022739,2]
[377894961,1754603442748,-151.0,0.00022739,7]
[377894962,1754603442758,-736.66,0.00022739,2]
[377894963,1754603442768,-460.0,0.00022739,2]
[377894964,1754603442777,-460.0,0.00022739,2]
[377894965,1754603442788,-214.672918,0.00022739,7]
[377894966,1754603442799,-499.8,0.00022739,2]
[377894967,1754603442809,-151.0,0.00022739,7]
[377894968,1754603442818,-460.0,0.00022739,2]
[377894969,1754603442828,-2049.89,0.00022739,2]
[377894970,1754603442837,-151.0,0.00022739,7]
[377894971,1754603442847,-460.0,0.00022739,2]
[377894972,1754603442856,-856.73,0.00022739,2]
[377894973,1754603442865,-151.0,0.00022739,7]
[377894974,1754603442875,-151.0,0.00022739,7]
[377894975,1754603442885,-1031.25,0.00022739,2]
[377894976,1754603442894,-735.595839,0.00022739,7]
[377894978,1754603442904,-509.41,0.00022739,2]
[377894980,1754603442913,-735.595839,0.00022739,7]
[377894982,1754603442923,-151.0,0.00022774,7]
[377894983,1754603442932,-151.0,0.00022774,7]
[377894984,1754603442941,-151.0,0.00022774,7]
[377894985,1754603442950,-151.0,0.00022774,7]
[377894986,1754603442960,-527.57568145,0.00022775,2]
[377894987,1754603442971,-160.0,0.00022775,2]
[377894988,1754603442980,-12660.90439413,0.00022775,2]
[377894990,1754603442989,-215.31718835,0.00022775,2]
[377894992,1754603442999,-160.0,0.00022775,2]
[377894994,1754603443008,-231.83071243,0.00022775,2]
[377894996,1754603443018,-216.52217562,0.00022775,2]
[377894998,1754603443027,-160.0,0.00022775,2]
[377895000,1754603443036,-461.3695942,0.00022775,2]
[377895002,1754603443045,-842.63596909,0.00022775,2]
[377895004,1754603443055,-312.16666667,0.00022775,2]
[377895006,1754603443064,-160.0,0.00022775,2]
[377895008,1754603443074,-160.0,0.00022775,2]
[377895009,1754603443083,-151.0,0.00022775,7]
[377895011,1754603443092,-206.573373,0.00022775,7]
[377895013,1754603443102,-151.0,0.00022775,7]
[377895015,1754603443112,-151.0,0.00022794,7]
[377895017,1754603443123,-151.0,0.00022794,7]
[377895019,1754603443133,-155.340455,0.00022794,7]
[377895021,1754603443142,-195.406091,0.00022794,7]
[377895022,1754603443151,-195.406091,0.00022794,7]
[377895023,1754603443160,-151.0,0.00022794,7]
[377895025,1754603443170,-344.35708623,0.00022847,2]
[377895027,1754603443179,-585.906119,0.00022912,7]
[377895028,1754603443188,-585.906119,0.00022912,7]
[377895029,1754603443197,-628.996445,0.00022912,7]
[377895030,1754603443206,-628.996445,0.00022912,7]
[377895031,1754603443216,-688.97,0.00022912,2]
[377895032,1754603443225,-1822.4,0.00022912,2]
[377895033,1754603443235,-160.0,0.00022997,3]
[377895036,1754603443246,-1758.0,0.00022997,3]
[377895038,1754603443255,-155.0,0.00022997,3]
[377895040,1754603443264,-152.0,0.00022997,3]
[377895041,1754603443274,-155.0,0.00022997,3]
[377895043,1754603443283,-160.0,0.00023,2]
[377895044,1754603443292,-151.0,0.00023012,7]
[377895045,1754603443302,-151.0,0.00023012,7]
[377895046,1754603443312,-151.0,0.00023012,7]
[377895047,1754603443321,-151.0,0.00023012,7]
[377895048,1754603443331,-151.0,0.00023012,7]
[377895049,1754603443340,-151.0,0.00023012,7]
[377895050,1754603443350,-241.576471,0.00023012,7]
[377895051,1754603443361,-151.0,0.00023012,7]
[377895052,1754603443371,-151.0,0.00023012,7]
[377895053,1754603443380,-151.0,0.00023012,7]
[377895054,1754603443390,-735.595839,0.00023012,7]
[377895055,1754603443399,-735.595839,0.00023012,7]
[377895056,1754603443408,-151.0,0.00023013,7]
[377895057,1754603443417,-151.0,0.00023013,7]
[377895058,1754603443427,-460.0,0.00023013,2]
[377895059,1754603443436,-460.0,0.00023013,2]
[377895060,1754603443446,-460.0,0.00023013,2]
[377895061,1754603443455,-549.611894,0.00023013,7]
[377895062,1754603443464,-549.611894,0.00023013,7]
[377895063,1754603443474,-151.0,0.00023013,7]
[377895064,1754603443483,-151.0,0.00023013,7]
[377895065,1754603443493,-151.0,0.00023013,7]
[377895066,1754603443502,-593.46,0.00023013,2]
[377895067,1754603443512,-460.0,0.00023013,2]
[377895068,1754603443521,-460.0,0.00023013,2]
[377895069,1754603443531,-460.0,0.00023013,2]
[377895070,1754603443541,-478.61,0.00023013,2]
[377895071,1754603443551,-151.0,0.00023013,7]
[377895072,1754603443560,-988.29,0.00023013,2]
[377895073,1754603443570,-460.0,0.00023013,2]
[377895074,1754603443579,-1038.3,0.00023013,2]
[377895075,1754603443590,-460.0,0.00023013,2]
[377895076,1754603443601,-460.0,0.00023013,2]
[377895077,1754603443612,-659.64,0.00023013,2]
[377895078,1754603443622,-460.0,0.00023013,2]
[377895079,1754603443632,-696.32,0.00023013,2]
[377895080,1754603443642,-931.5,0.00023013,2]
[377895081,1754603443652,-151.0,0.00023013,7]
[377895082,1754603443662,-780.8,0.00023013,2]
[377895083,1754603443672,-460.0,0.00023013,2]
[377895084,1754603443682,-460.0,0.00023013,2]
[377895085,1754603443691,-1235.24,0.00023013,2]
[377895086,1754603443701,-460.0,0.00023013,2]
[377895087,1754603443714,-460.0,0.00023013,2]
[377895088,1754603443723,-1215.77,0.00023013,2]
[377895089,1754603443732,-895.01,0.00023013,2]
[377895090,1754603443742,-857.72,0.00023013,2]
[377895091,1754603443751,-460.0,0.00023013,2]
[377895092,1754603443760,-460.0,0.00023013,2]
[377895093,1754603443770,-621.03,0.00023013,2]
[377895094,1754603443779,-460.0,0.00023013,2]
[377895095,1754603443792,-1356.22,0.00023013,2]
[377895096,1754603443802,-460.0,0.00023013,2]
[377895097,1754603443813,-460.0,0.00023013,2]
[377895098,1754603443822,-736.66,0.00023013,2]
[377895099,1754603443833,-389.59990085,0.00023013,2]
[377895100,1754603443843,-460.0,0.00023013,2]
[377895101,1754603443853,-499.8,0.00023013,2]
[377895102,1754603443863,-460.0,0.00023013,2]
[377895103,1754603443873,-2049.89,0.00023013,2]
[377895104,1754603443882,-856.73,0.00023013,2]
[377895105,1754603443892,-1031.25,0.00023013,2]
[377895106,1754603443902,-509.41,0.00023013,2]
[377895107,1754603443912,-160.0,0.00023036,3]
[377895108,1754603443922,-1758.0,0.00023036,3]
[377895109,1754603443931,-1758.0,0.00023036,3]
[377895110,1754603443941,-1758.0,0.00023036,3]
[377895111,1754603443951,-155.0,0.00023036,3]
[377895112,1754603443961,-1758.0,0.00023036,3]
[377895113,1754603443970,-1758.0,0.00023036,3]
[377895114,1754603443980,-155.0,0.00023036,3]
[377895115,1754603443990,-152.0,0.00023036,3]
[377895116,1754603444000,-1758.0,0.00023036,3]
[377895117,1754603444011,-155.0,0.00023036,3]
[377895118,1754603444021,-152.0,0.00023036,3]
[377895119,1754603444030,-152.0,0.00023036,3]
[377895120,1754603444040,-325.0,0.00023036,3]
[377895121,1754603444050,-325.0,0.00023036,3]
[377895122,1754603444061,-160.0,0.00023036,3]
[377895123,1754603444071,-160.0,0.00023036,3]
[377895124,1754603444080,-842.63596909,0.00023036,3]
[377895125,1754603444089,-216.52217562,0.00023036,3]
[377895126,1754603444098,-527.57568145,0.00023036,3]
[377895127,1754603444108,-312.16666667,0.00023036,3]
[377895128,1754603444118,-151.0,0.00023036,7]
[377895129,1754603444128,-151.0,0.00023036,7]
[377895130,1754603444137,-151.0,0.00023036,7]
[377895131,1754603444147,-239.129824,0.00023036,7]
[377895132,1754603444156,-151.0,0.00023036,7]
[377895133,1754603444165,-151.0,0.00023036,7]
[377895134,1754603444174,-735.595839,0.00023036,7]
[377895135,1754603444184,-735.595839,0.00023036,7]
[377895136,1754603444193,-214.85905664,0.00023055,2]
[377895137,1754603444202,-151.0,0.00023068,7]
[377895138,1754603444212,-151.0,0.00023068,7]
[377895139,1754603444221,-1500.0,0.00023068,2]
[377895140,1754603444231,-1500.0,0.00023068,2]
[377895141,1754603444240,-1251.34498614,0.00023068,2]
[377895142,1754603444249,-152.215842,0.0002311,7]
[377895143,1754603444383,-151.0,0.0002311,7]
[377895144,1754603444393,-151.0,0.0002311,7]
[377895145,1754603444403,-151.0,0.0002311,7]
[377895146,1754603444412,-151.0,0.0002311,7]
[377895147,1754603444422,-151.0,0.0002311,7]
[377895148,1754603444431,-151.0,0.0002311,7]
[377895149,1754603444440,-151.0,0.0002311,7]
[377895150,1754603444449,-151.0,0.0002311,7]
[377895151,1754603444458,-151.0,0.0002311,7]
[377895152,1754603444468,-151.0,0.0002311,7]
[377895153,1754603444477,-151.0,0.0002311,7]
[377895154,1754603444486,-151.0,0.0002311,7]
[377895155,1754603444495,-151.0,0.0002311,7]
[377895156,1754603444505,-151.0,0.0002311,7]
[377895157,1754603444514,-151.0,0.0002311,7]
[377895158,1754603444523,-151.0,0.0002311,7]
[377895159,1754603444532,-151.0,0.0002311,7]
[377895160,1754603444542,-151.0,0.0002311,7]
[377895161,1754603444553,-244.864117,0.0002311,7]
[377895162,1754603444562,-182.172375,0.00023138,7]
[377895163,1754603444572,-169.288765,0.00023139,7]
[377895164,1754603444581,-585.906119,0.00023139,7]
[377895165,1754603444591,-585.906119,0.00023139,7]
[377895166,1754603444600,-628.996445,0.00023139,7]
[377895167,1754603444609,-628.996445,0.00023139,7]
[377895168,1754603444618,-688.97,0.00023186,2]
[377895169,1754603444628,-1822.4,0.00023186,2]
[377895170,1754603444637,-549.611894,0.00023187,7]
[377895171,1754603444647,-549.611894,0.00023187,7]
[377895172,1754603444656,-151.0,0.00023187,7]
[377895173,1754603444665,-151.0,0.00023187,7]
[377895174,1754603444675,-282.224601,0.00023187,7]
[377895175,1754603444684,-3047.21326645,0.00023248,2]
[377895176,1754603444693,-314.8,0.00023254,2]
[377895177,1754603444702,-151.0,0.00023286,7]
[377895178,1754603444715,-151.0,0.00023286,7]
[377895179,1754603444725,-195.406091,0.00023286,7]
[377895180,1754603444735,-195.406091,0.00023286,7]
[377895181,1754603444747,-296.33699922,0.00023287,2]
[377895182,1754603444756,-151.0,0.00023287,7]
[377895183,1754603444765,-460.0,0.00023287,2]
[377895184,1754603444775,-460.0,0.00023287,2]
[377895185,1754603444788,-460.0,0.00023287,2]
[377895186,1754603444799,-593.46,0.00023287,2]
[377895187,1754603444809,-555.10354702,0.00023287,2]
[377895188,1754603444818,-460.0,0.00023287,2]
[377895189,1754603444828,-460.0,0.00023287,2]
[377895190,1754603444837,-478.61,0.00023287,2]
[377895191,1754603444847,-988.29,0.00023287,2]
[377895192,1754603444856,-460.0,0.00023287,2]
[377895193,1754603444865,-1038.3,0.00023287,2]
[377895194,1754603444875,-460.0,0.00023287,2]
[377895195,1754603444884,-460.0,0.00023287,2]
[377895196,1754603444894,-585.906119,0.00023287,7]
[377895197,1754603444904,-585.906119,0.00023287,7]
[377895198,1754603444913,-659.64,0.00023287,2]
[377895199,1754603444923,-460.0,0.00023287,2]
[377895200,1754603444932,-696.32,0.00023287,2]
[377895201,1754603444942,-151.0,0.00023287,7]
[377895202,1754603444951,-931.5,0.00023287,2]
[377895203,1754603444961,-628.996445,0.00023287,7]
[377895204,1754603444971,-460.0,0.00023287,2]
[377895205,1754603444980,-780.8,0.00023287,2]
[377895206,1754603444990,-628.996445,0.00023287,7]
[377895207,1754603445002,-460.0,0.00023287,2]
[377895208,1754603445011,-151.0,0.00023287,7]
[377895209,1754603445022,-1235.24,0.00023287,2]
[377895210,1754603445031,-570.9,0.00023287,2]
[377895211,1754603445040,-151.0,0.00023287,7]
[377895212,1754603445050,-460.0,0.00023287,2]
[377895213,1754603445059,-1215.77,0.00023287,2]
[377895214,1754603445069,-895.01,0.00023287,2]
[377895215,1754603445078,-460.0,0.00023287,2]
[377895216,1754603445087,-857.72,0.00023287,2]
[377895217,1754603445096,-460.0,0.00023287,2]
[377895218,1754603445106,-621.03,0.00023287,2]
[377895219,1754603445116,-151.0,0.00023287,7]
[377895220,1754603445125,-460.0,0.00023287,2]
[377895221,1754603445135,-1356.22,0.00023287,2]
[377895222,1754603445144,-460.0,0.00023287,2]
[377895223,1754603445153,-460.0,0.00023287,2]
[377895224,1754603445163,-736.66,0.00023287,2]
[377895225,1754603445172,-151.0,0.00023287,7]